fUST/lending_fUST_20250827
["ID","MTS","AMOUNT","RATE_DAILY","PERIOD"]
[381499743,1756236645856,-187.409123,0.000362,30]
[381499744,1756236645866,-187.409123,0.000362,30]
[381499745,1756236645876,-187.409123,0.000362,30]
[381499746,1756236645885,-187.409123,0.000362,30]
[381499747,1756236645895,-151.0,0.000362,30]
[381499748,1756236645904,-151.0,0.000362,30]
[381499749,1756236645913,-151.0,0.000362,30]
[381499750,1756236645923,-185.617661,0.000362,30]
[381499751,1756236645933,-151.0,0.000362,30]
[381499752,1756236645943,-185.617661,0.000362,30]
[381499753,1756236645952,-185.617661,0.000362,30]
[381499754,1756236645961,-185.617661,0.000362,30]
[381499755,1756236645970,-151.0,0.000362,30]
[381499756,1756236645979,-151.0,0.000362,30]
[381499757,1756236645989,-151.0,0.000362,30]
[381499758,1756236645998,-151.0,0.000362,30]
[381499759,1756236646009,-151.0,0.000362,30]
[381499760,1756236646018,-151.0,0.000362,30]
[381499761,1756236646029,-206.253544,0.000362,30]
[381499762,1756236646038,-151.0,0.000362,30]
[381499763,1756236646047,-202.81045644,0.0003621,2]
[381499764,1756236646057,-263.79912421,0.0003624,2]
[381499765,1756236646066,-1209.49495995,0.00036436,2]
[381499766,1756236646076,-151.0,0.000366,20]
[381499767,1756236646085,-250.0,0.00036721,5]
[381499768,1756236646095,-300.0,0.00036721,5]
[381499770,1756236646104,-153.9935756,0.00036776,30]
[381499771,1756236646114,-359.2496563,0.00036776,30]
[381499772,1756236646123,-329.8367364,0.00036776,30]
[381499774,1756236646132,-154.65831,0.00036844,2]
[381499775,1756236646142,-2770.61,0.000369,7]
[381499776,1756236646151,-154.65831,0.00036956,20]
[381499777,1756236646160,-151.0,0.00037,16]
[381499778,1756236646169,-10581.66,0.00037,14]
[381499779,1756236646179,-151.0,0.00037129,30]
[381499780,1756236646188,-151.0,0.00037129,30]
[381499781,1756236646197,-151.0,0.00037129,30]
[381499782,1756236646207,-46155.42,0.000372,14]
[381499783,1756236646216,-3059.06,0.000372,7]
[381499784,1756236646226,-350.0,0.00037268,5]
[381499785,1756236646235,-300.0,0.00037268,5]
[381499786,1756236646244,-151.0,0.0003729,30]
[381499787,1756236646253,-151.0,0.000373,30]
[381499788,1756236646263,-151.0,0.000373,30]
[381499789,1756236646272,-151.0,0.000373,30]
[381499790,1756236646282,-151.0,0.000373,30]
[381499791,1756236646291,-151.0,0.000373,30]
[381499792,1756236646301,-151.0,0.000373,30]
[381499793,1756236646310,-151.0,0.000373,30]
[381499794,1756236646319,-151.0,0.000373,30]
[381499795,1756236646328,-500.0,0.00037333,5]
[381499796,1756236646338,-154.65831,0.00037369,6]
[381499797,1756236646348,-184.530313,0.00037386,2]
[381499798,1756236646357,-394.4629129,0.00037452,30]
[381499799,1756236646369,-387.3413864,0.00037452,30]
[381499800,1756236646379,-387.3413864,0.00037452,30]
[381499801,1756236646388,-387.3413864,0.00037452,30]
[381499802,1756236646399,-153.0,0.00037589,30]
[381499803,1756236646408,-161.0922331,0.00037589,30]
[381499804,1756236646418,-294.3576271,0.00037589,30]
[381499805,1756236646428,-153.0,0.00037589,30]
[381499806,1756236646442,-1177.6450248,0.00037589,30]
[381499807,1756236646452,-294.3576271,0.00037589,30]
[381499808,1756236646461,-161.0922331,0.00037589,30]
[381499809,1756236646470,-294.3576271,0.00037589,30]
[381499810,1756236646479,-161.0922331,0.00037589,30]
[381499811,1756236646489,-153.0,0.00037589,30]
[381499812,1756236646498,-153.0,0.00037589,30]
[381499813,1756236646508,-161.0922331,0.00037589,30]
[381499814,1756236646518,-286.8697805,0.00037589,30]
[381499815,1756236646527,-161.0922331,0.00037589,30]
[381499816,1756236646536,-153.0,0.00037589,30]
[381499817,1756236646545,-153.0,0.00037589,30]
[381499818,1756236646555,-161.0922331,0.00037589,30]
[381499819,1756236646564,-161.0922331,0.00037589,30]
[381499820,1756236646573,-153.0,0.00037589,30]
[381499821,1756236646583,-153.0,0.00037589,30]
[381499822,1756236646592,-161.0922331,0.00037589,30]
[381499823,1756236646601,-306.0,0.00037589,30]
[381499824,1756236646611,-161.0922331,0.00037589,30]
[381499825,1756236646619,-161.0922331,0.00037589,30]
[381499826,1756236646629,-449.6794224,0.00037589,30]
[381499827,1756236646638,-153.0,0.00037589,30]
[381499828,1756236646647,-153.0,0.00037589,30]
[381499829,1756236646656,-153.0,0.00037589,30]
[381499830,1756236646666,-3405.4799387,0.00037619,2]
[381499831,1756236646675,-151.0,0.00037619,30]
[381499832,1756236646685,-151.0,0.00037619,30]
[381499833,1756236646694,-151.0,0.00037619,30]
[381499834,1756236646703,-151.0,0.000377,10]
[381499835,1756236646712,-450.0,0.00037816,5]
[381499836,1756236646722,-3471.99309275,0.00037959,2]
[381499837,1756236646732,-151.0,0.00038,20]
[381499838,1756236646741,-151.0,0.00038,30]
[381499839,1756236646750,-151.0,0.00038,30]
[381499840,1756236646759,-151.0,0.00038,30]
[381499841,1756236646769,-151.0,0.00038,30]
[381499842,1756236646778,-153.500027,0.00038,14]
[381499843,1756236646788,-151.0,0.00038,30]
[381499844,1756236646798,-151.0,0.00038,30]
[381499845,1756236646808,-151.0,0.00038,30]
[381499846,1756236646817,-158.263008,0.00038,30]
[381499847,1756236646827,-160.0,0.00038,30]
[381499848,1756236646836,-160.0,0.00038,30]
[381499849,1756236646845,-376.39720582,0.00038,30]
[381499850,1756236646855,-216.09257821,0.00038,30]
[381499851,1756236646864,-200.0,0.00038,30]
[381499852,1756236646874,-160.0,0.00038,30]
[381499853,1756236646883,-221.7602304,0.00038057,2]
[381499854,1756236646892,-199.0,0.00038156,120]
[381499855,1756236646901,-199.0,0.00038256,120]
[381499856,1756236646911,-150.0,0.00038333,2]
[381499857,1756236646921,-150.0,0.00038333,2]
[381499858,1756236646931,-500.0,0.00038356,120]
[381499859,1756236646941,-550.0,0.00038364,5]
[381499860,1756236646951,-151.0,0.000384,30]
[381499861,1756236646962,-152.011263,0.000384,30]
[381499862,1756236646971,-151.0,0.000384,30]
[381499863,1756236646981,-182.328358,0.000384,30]
[381499864,1756236646990,-151.0,0.000384,30]
[381499865,1756236646999,-151.0,0.000384,30]
[381499866,1756236647010,-250.599124,0.000384,30]
[381499867,1756236647019,-151.0,0.000384,30]
[381499868,1756236647030,-151.0,0.000384,30]
[381499869,1756236647039,-151.0,0.000384,30]
[381499870,1756236647050,-151.0,0.000384,30]
[381499871,1756236647059,-219.675069,0.000384,30]
[381499872,1756236647068,-312.471107,0.000384,30]
[381499873,1756236647078,-151.0,0.000384,30]
[381499874,1756236647087,-312.471107,0.000384,30]
[381499875,1756236647098,-312.471107,0.000384,30]
[381499876,1756236647108,-312.471107,0.000384,30]
[381499877,1756236647117,-151.0,0.000384,15]
[381499878,1756236647126,-151.0,0.000384,15]
[381499879,1756236647135,-151.0,0.000384,30]
[381499880,1756236647145,-151.0,0.000384,30]
[381499881,1756236647154,-151.0,0.000384,30]
[381499882,1756236647163,-151.0,0.000384,30]
[381499883,1756236647173,-287.861439,0.000384,30]
[381499884,1756236647183,-10581.66,0.000384,14]
[381499885,1756236647192,-307.780374,0.000384,30]
[381499886,1756236647201,-307.780374,0.000384,30]
[381499887,1756236647210,-307.780374,0.000384,30]
[381499888,1756236647220,-151.0,0.000384,30]
[381499889,1756236647229,-307.78037,0.000384,30]
[381499890,1756236647239,-151.0,0.000384,30]
[381499891,1756236647255,-151.0,0.000384,30]
[381499892,1756236647270,-187.409123,0.000384,30]
[381499893,1756236647282,-187.409123,0.000384,30]
[381499894,1756236647295,-187.409123,0.000384,30]
[381499895,1756236647309,-187.409131,0.000384,30]
[381499896,1756236647323,-151.0,0.000384,30]
[381499897,1756236647337,-151.0,0.000384,30]
[381499898,1756236647352,-151.0,0.000384,30]
[381499899,1756236647370,-185.617661,0.000384,30]
[381499900,1756236647381,-151.0,0.000384,30]
[381499901,1756236647396,-185.617661,0.000384,30]
[381499902,1756236647410,-185.617661,0.000384,30]
[381499903,1756236647425,-185.617653,0.000384,30]
[381499904,1756236647441,-2770.61,0.000384,7]
[381499905,1756236647455,-151.0,0.000384,30]
[381499906,1756236647470,-151.0,0.000384,30]
[381499907,1756236647484,-151.0,0.000384,30]
[381499908,1756236647497,-151.0,0.000384,30]
[381499909,1756236647511,-151.0,0.000384,30]
[381499910,1756236647524,-151.0,0.000384,30]
[381499911,1756236647540,-153.598615,0.000384,30]
[381499912,1756236647553,-187.09935736,0.0003842,14]
[381499913,1756236647566,-46155.42,0.000385,14]
[381499914,1756236647577,-3059.06,0.000385,7]
[381499915,1756236647590,-1152.0,0.00038553,5]
[381499916,1756236647607,-3000.0,0.000386,36]
[381499917,1756236647618,-151.0,0.000386,30]
[381499918,1756236647628,-151.0,0.000386,30]
[381499919,1756236647642,-151.0,0.000386,30]
[381499920,1756236647656,-151.0,0.000386,30]
[381499921,1756236647666,-3000.0,0.0003861,36]
[381499922,1756236647677,-151.0,0.0003861,30]
[381499923,1756236647690,-151.0,0.0003861,30]
[381499924,1756236647702,-151.0,0.0003861,30]
[381499925,1756236647714,-151.0,0.0003861,30]
[381499926,1756236647727,-151.0,0.0003861,30]
[381499927,1756236647739,-151.0,0.0003861,30]
[381499928,1756236647751,-151.0,0.0003861,30]
[381499929,1756236647764,-3000.0,0.0003862,36]
[381499930,1756236647776,-151.594813,0.0003862,30]
[381499931,1756236647789,-151.0,0.0003862,30]
[381499932,1756236647801,-151.0,0.0003862,30]
[381499933,1756236647814,-151.0,0.0003862,30]
[381499934,1756236647826,-151.663043,0.0003862,30]
[381499935,1756236647839,-151.0,0.0003862,30]
[381499936,1756236647850,-151.0,0.0003862,30]
[381499937,1756236647862,-151.0,0.0003862,30]
[381499938,1756236647874,-151.0,0.0003862,30]
[381499939,1756236647886,-5815.250325,0.0003863,36]
[381499940,1756236647898,-7124.0675811,0.00038646,2]
[381499941,1756236647910,-311.94719537,0.000387,120]
[381499942,1756236647922,-638.0,0.00038742,2]
[381499943,1756236647934,-2156.0,0.00038742,2]
[381499944,1756236647947,-409.0,0.00038742,2]
[381499945,1756236647963,-151.0,0.000388,12]
[381499946,1756236647975,-151.0,0.00038862,30]
[381499947,1756236647988,-151.0,0.00038862,30]
[381499948,1756236648000,-151.0,0.00038862,30]
[381499949,1756236648012,-500.0,0.00038903,7]
[381499950,1756236648024,-500.0,0.00038904,120]
[381499951,1756236648037,-482.66998372,0.00038912,5]
[381499952,1756236648049,-160.0,0.00039,120]
[381499953,1756236648060,-160.0,0.00039,3]
[381499954,1756236648072,-376.39720582,0.00039,3]
[381499955,1756236648085,-160.0,0.00039,120]
[381499956,1756236648097,-152.0,0.00039,120]
[381499957,1756236648110,-154.65831,0.00039254,60]
[381499958,1756236648122,-154.65831,0.00039312,2]
[381499959,1756236648134,-444.85113959,0.00039315,5]
[381499960,1756236648146,-9852.61643654,0.000394,120]
[381499961,1756236648158,-154.65831,0.00039437,20]
[381499962,1756236648171,-500.0,0.00039452,120]
[381499963,1756236648183,-151.0,0.000396,10]
[381499964,1756236648196,-151.0,0.000396,30]
[381499965,1756236648208,-228.2694,0.000396,30]
[381499966,1756236648220,-151.0,0.000396,30]
[381499967,1756236648232,-151.0,0.000396,30]
[381499968,1756236648244,-151.0,0.000396,30]
[381499969,1756236648257,-151.0,0.000396,30]
[381499970,1756236648270,-151.0,0.000396,30]
[381499971,1756236648282,-272.906513,0.00039654,2]
[381499972,1756236648295,-3753.87776674,0.00039676,6]
[381499973,1756236648307,-200.32076711,0.00039808,30]
[381499974,1756236648320,-151.0,0.000399,15]
[381499975,1756236648332,-500.0,0.00039919,7]
[381499976,1756236648344,-800.0,0.00039989,7]
[381499977,1756236648356,-1500.0,0.0004,120]
[381499978,1756236648371,-1500.0,0.0004,30]
[381499979,1756236648384,-10581.66,0.0004,14]
[381499980,1756236648396,-500.0,0.0004,120]
[381499981,1756236648409,-500.0,0.0004,2]
[381499982,1756236648422,-801.11854901,0.0004,30]
[381499983,1756236648434,-150.0,0.00040052,2]
[381499984,1756236648448,-500.0,0.0004009,30]
[381499985,1756236648461,-500.0,0.0004009,30]
[381499986,1756236648473,-151.0,0.000401,30]
[381499987,1756236648486,-151.0,0.000401,30]
[381499988,1756236648499,-46155.42,0.000401,14]
[381499989,1756236648511,-3059.06,0.000401,7]
[381499990,1756236648524,-2770.61,0.000401,7]
[381499991,1756236648538,-150.0,0.0004019,2]
[381499992,1756236648550,-869.81034234,0.0004024,2]
[381499993,1756236648563,-800.0,0.00040259,30]
[381499994,1756236648575,-800.0,0.00040271,30]
[381499995,1756236648587,-12500.0,0.00040274,10]
[381499996,1756236648600,-500.0,0.00040281,30]
[381499997,1756236648612,-529.4218694,0.000403,10]
[381499998,1756236648625,-268.23,0.00040328,2]
[381499999,1756236648637,-3471.99309275,0.00040341,28]
[381500000,1756236648649,-500.0,0.00040438,30]
[381500001,1756236648662,-200.0,0.0004049,3]
[381500002,1756236648674,-800.0,0.00040536,7]
[381500003,1756236648686,-500.0,0.00040547,7]
[381500004,1756236648698,-500.0,0.00040547,120]
[381500005,1756236648710,-4831.68,0.00040572,30]
[381500006,1756236648722,-151.0,0.00040572,30]
[381500007,1756236648735,-151.0,0.00040572,30]
[381500008,1756236648747,-151.0,0.00040572,30]
[381500009,1756236648760,-151.0,0.00040572,30]
[381500010,1756236648771,-151.0,0.00040572,30]
[381500011,1756236648783,-151.0,0.00040572,30]
[381500012,1756236648796,-312.471107,0.00040572,30]
[381500013,1756236648809,-312.471107,0.00040572,30]
[381500014,1756236648822,-312.471107,0.00040572,30]
[381500015,1756236648833,-312.471107,0.00040572,30]
[381500016,1756236648846,-173.45921025,0.00040584,8]
[381500017,1756236648858,-151.0,0.00040584,15]
[381500018,1756236648870,-151.0,0.00040584,15]
[381500019,1756236648882,-151.0,0.00040584,30]
[381500020,1756236648894,-151.0,0.00040584,30]
[381500021,1756236648907,-151.0,0.00040584,30]
[381500022,1756236648920,-151.0,0.00040584,30]
[381500023,1756236648932,-159.70548078,0.00040584,120]
[381500024,1756236648944,-11698.78612678,0.00040584,2]
[381500025,1756236648957,-5461.34738393,0.00040584,2]
[381500026,1756236648968,-1000.0,0.00040584,2]
[381500027,1756236648980,-150.0,0.000406,5]
[381500028,1756236648992,-375.73491423,0.00040629,7]
[381500029,1756236649003,-500.0,0.00040654,30]
[381500030,1756236649016,-151.611321,0.00040674,30]
[381500031,1756236649028,-213.833154,0.00040674,30]
[381500032,1756236649039,-151.0,0.00040674,30]
[381500033,1756236649052,-151.0,0.00040674,30]
[381500034,1756236649064,-152.077401,0.00040674,30]
[381500035,1756236649077,-151.0,0.00040674,30]
[381500036,1756236649088,-151.0,0.00040674,30]
[381500037,1756236649100,-248.439467,0.00040674,30]
[381500038,1756236649112,-151.0,0.00040674,30]
[381500039,1756236649124,-151.0,0.00040674,30]
[381500040,1756236649136,-430592.3352083,0.00040684,2]
[381500041,1756236649764,-154541.21829456,0.00040684,2]
[381500042,1756236649775,-151.0,0.00040684,30]
[381500043,1756236649785,-151.0,0.00040684,30]
[381500044,1756236649794,-289.391831,0.00040684,30]
[381500045,1756236649804,-151.0,0.00040684,30]
[381500046,1756236649814,-151.0,0.00040684,30]
[381500047,1756236649823,-151.0,0.00040684,30]
[381500048,1756236649833,-151.0,0.00040684,30]
[381500049,1756236649845,-151.0,0.00040684,30]
[381500050,1756236649855,-151.0,0.00040684,30]
[381500051,1756236649865,-151.0,0.00040684,30]
[381500052,1756236649875,-151.0,0.00040684,30]
[381500053,1756236649884,-312.471107,0.00040684,30]
[381500054,1756236649894,-312.471107,0.00040684,30]
[381500055,1756236649904,-312.471107,0.00040684,30]
[381500056,1756236649913,-312.471107,0.00040684,30]
[381500057,1756236649923,-151.0,0.00040684,15]
[381500058,1756236649933,-258.439252,0.00040684,15]
[381500059,1756236649942,-151.0,0.00040684,30]
[381500060,1756236649952,-151.0,0.00040684,30]
[381500061,1756236649962,-151.0,0.00040684,30]
[381500062,1756236649973,-151.0,0.00040684,30]
[381500063,1756236649983,-151.0,0.00040684,30]
[381500064,1756236649992,-151.0,0.00040684,30]
[381500065,1756236650002,-151.0,0.00040684,30]
[381500066,1756236650013,-500.0,0.00040698,30]
[381500067,1756236650024,-293.85068442,0.00040753,30]
[381500068,1756236650035,-1080.07556,0.00040761,2]
[381500069,1756236650044,-3067.93061942,0.000408,120]
[381500070,1756236650555,3165.938106,0.000199,2]
[381500071,1756236650583,116.57088634,0.000199,2]
[381500072,1756236650631,3282.50899225,0.00021627,2]
[381500073,1756236650673,3282.50899225,0.00023353,2]
[381500074,1756236650733,3282.50899225,0.0002508,2]
[381500075,1756236650770,35.91213691,0.00026806,6]
[381500076,1756236650798,3246.59685534,0.00026806,6]
[381500077,1756236651181,5000.0,0.000271,2]
[381500078,1756236651875,-179.53353421,0.00028533,10]
[381500079,1756236652462,-500.0,0.00028531,2]
[381500080,1756236652472,-500.0,0.00028531,2]
[381500081,1756236652481,-650.0,0.00028531,2]
[381500082,1756236652490,-890.61175578,0.00028533,10]
[381500083,1756236652505,-2212.36370226,0.00028533,10]
[381500084,1756236652515,-151.0,0.00029559,7]
[381500085,1756236652524,-151.0,0.00029559,7]
[381500086,1756236652533,-151.0,0.00029559,7]
[381500087,1756236652543,-151.0,0.00029559,7]
[381500088,1756236652553,-3282.50899225,0.00030259,13]
[381500089,1756236652562,-3239.83540828,0.00030861,2]
[381500090,1756236652571,-151.0,0.00030861,7]
[381500091,1756236652580,-199.088,0.00030861,7]
[381500092,1756236652589,-151.0,0.00030861,7]
[381500093,1756236652809,-3282.50899225,0.00031986,17]
[381500094,1756236652823,-151.0,0.00032,7]
[381500095,1756236652834,-151.0,0.00032,7]
[381500096,1756236652844,-160.0,0.00033437,2]
[381500097,1756236652853,-3282.50899225,0.00033712,21]
[381500098,1756236652863,-151.0,0.00033816,7]
[381500099,1756236652873,-151.0,0.00033816,7]
[381500100,1756236652883,-3282.50899225,0.00035439,24]
[381500101,1756236652893,-151.0,0.000355,7]
[381500102,1756236652902,-151.0,0.000355,7]
[381500103,1756236652912,-3282.50899225,0.00037166,28]
[381500104,1756236652921,-3282.50899225,0.00038892,32]
[381500105,1756236652931,-3282.50899225,0.00040619,36]
[381500106,1756236652941,-41500.78989696,0.000408,120]
[381500107,1756236652950,-2200.0,0.00040804,14]
[381500108,1756236652960,-184.530313,0.0004081,2]
[381500109,1756236652969,-500.0,0.00040817,30]
[381500110,1756236652979,-800.0,0.00040845,30]
[381500111,1756236652988,-800.0,0.00040847,7]
[381500112,1756236652998,-154.65831,0.0004089,6]
[381500113,1756236653007,-800.0,0.00040898,7]
[381500114,1756236653017,-529.4218694,0.00041,30]
[381500115,1756236653026,-39843.62780004,0.00041,2]
[381500116,1756236653036,-159.70548078,0.00041018,120]
[381500117,1756236653046,-800.0,0.00041047,30]
[381500118,1756236653055,-500.0,0.00041073,5]
[381500119,1756236653065,-496.81936013,0.00041073,5]
[381500120,1756236653075,-501.84261226,0.00041095,15]
[381500121,1756236653084,-480.0,0.00041095,120]
[381500122,1756236653093,-480.0,0.00041095,120]
[381500123,1756236653102,-480.0,0.00041095,120]
[381500124,1756236653111,-480.0,0.00041095,30]
[381500125,1756236653120,-480.0,0.00041095,30]
[381500126,1756236653130,-480.88238758,0.00041095,120]
[381500127,1756236653139,-480.0,0.00041095,120]
[381500128,1756236653149,-481.23645143,0.00041095,120]
[381500129,1756236653159,-480.0,0.00041095,120]
[381500130,1756236653168,-481.49450717,0.00041095,120]
[381500131,1756236653177,-480.0,0.00041095,120]
[381500132,1756236653187,-480.0,0.00041095,120]
[381500133,1756236653196,-480.0,0.00041095,120]
[381500134,1756236653207,-481.35008951,0.00041095,120]
[381500135,1756236653216,-480.0,0.00041095,120]
[381500136,1756236653226,-480.0,0.00041095,120]
[381500137,1756236653237,-480.0,0.00041095,120]
[381500138,1756236653246,-480.0,0.00041095,120]
[381500139,1756236653255,-500.0,0.00041095,2]
[381500140,1756236653264,-500.0,0.00041095,2]
[381500141,1756236653274,-480.0,0.00041095,120]
[381500142,1756236653283,-500.0,0.00041095,2]
[381500143,1756236653292,-500.0,0.00041095,2]
[381500144,1756236653302,-500.0,0.00041095,2]
[381500145,1756236653311,-500.0,0.00041095,2]
[381500146,1756236653321,-373.59341875,0.00041095,2]
[381500147,1756236653330,-480.0,0.00041095,120]
[381500148,1756236653339,-480.0,0.00041095,120]
[381500149,1756236653349,-438.11780381,0.00041095,120]
[381500150,1756236653360,-480.0,0.00041095,120]
[381500151,1756236653371,-480.0,0.00041095,120]
[381500152,1756236653382,-480.0,0.00041095,120]
[381500153,1756236653391,-480.0,0.00041095,120]
[381500154,1756236653402,-480.0,0.00041095,120]
[381500155,1756236653411,-480.0,0.00041095,120]
[381500156,1756236653421,-480.0,0.00041095,120]
[381500157,1756236653432,-480.78038555,0.00041095,120]
[381500158,1756236653442,-480.0,0.00041095,120]
[381500159,1756236653452,-480.0,0.00041095,120]
[381500160,1756236653461,-718.22,0.00041095,120]
[381500161,1756236653471,-480.0,0.00041095,120]
[381500162,1756236653481,-480.0,0.00041095,120]
[381500163,1756236653491,-507.91,0.00041095,14]
[381500164,1756236653500,-480.0,0.00041095,120]
[381500165,1756236653509,-480.0,0.00041095,120]
[381500166,1756236653519,-480.0,0.00041095,120]
[381500167,1756236653528,-480.0,0.00041095,120]
[381500168,1756236653538,-480.0,0.00041095,120]
[381500169,1756236653548,-480.0,0.00041095,120]
[381500170,1756236653558,-480.0,0.00041095,120]
[381500171,1756236653567,-486.18,0.00041095,120]
[381500172,1756236653577,-480.0,0.00041095,120]
[381500173,1756236653586,-386.60723927,0.00041095,120]
[381500174,1756236653596,-481.30601131,0.00041095,120]
[381500175,1756236653605,-480.0,0.00041095,120]
[381500176,1756236653615,-480.0,0.00041095,120]
[381500177,1756236653624,-480.0,0.00041095,120]
[381500178,1756236653634,-480.0,0.00041095,120]
[381500179,1756236653643,-480.0,0.00041095,120]
[381500180,1756236653652,-480.0,0.00041095,120]
[381500181,1756236653662,-480.0,0.00041095,120]
[381500182,1756236653672,-480.0,0.00041095,120]
[381500183,1756236653681,-415.1326586,0.00041095,120]
[381500184,1756236653690,-480.0,0.00041095,120]
[381500185,1756236653700,-480.0,0.00041095,120]
[381500186,1756236653710,-480.0,0.00041095,120]
[381500187,1756236653720,-480.0,0.00041095,120]
[381500188,1756236653730,-480.0,0.00041095,120]
[381500189,1756236653739,-505.63,0.00041095,120]
[381500190,1756236653750,-480.0,0.00041095,120]
[381500191,1756236653759,-480.0,0.00041095,120]
[381500192,1756236653769,-480.0,0.00041095,120]
[381500193,1756236653779,-480.0,0.00041095,120]
[381500194,1756236653788,-480.0,0.00041095,120]
[381500195,1756236653798,-480.0,0.00041095,120]
[381500196,1756236653808,-480.0,0.00041095,120]
[381500197,1756236653818,-229.78761883,0.00041095,120]
[381500198,1756236653827,-480.0,0.00041095,120]
[381500199,1756236653837,-543.73355207,0.00041095,120]
[381500200,1756236653846,-480.0,0.00041095,120]
[381500201,1756236653856,-515.24,0.00041095,120]
[381500202,1756236653865,-480.0,0.00041095,120]
[381500203,1756236653875,-480.0,0.00041095,120]
[381500204,1756236653884,-480.0,0.00041095,120]
[381500205,1756236653894,-480.0,0.00041095,120]
[381500206,1756236653903,-51.19625106,0.00041095,120]
[381500207,1756236656574,5000.0,0.0002711,2]
[381500208,1756236660295,561.48392158,0.00025205,2]
[381500209,1756236664985,4043.28439819,0.000271,2]
[381500210,1756236674511,-285.44664398,0.000271,2]
[381500211,1756236678797,-155.71263839,0.000271,2]
[381500212,1756236682040,-152.95697777,0.000271,2]
[381500213,1756236684081,-367.52406806,0.000271,2]
[381500214,1756236686810,-575.52314793,0.000271,2]
[381500215,1756236688664,165.0,8.8e-07,2]
[381500216,1756236688830,-675.30659369,0.000271,2]
[381500217,1756236692462,-179.53020932,0.000271,2]
[381500218,1756236698011,-216.36391022,0.000271,2]
[381500219,1756236702270,-217.96612277,0.000271,2]
[381500220,1756236704384,-344.44938106,0.000271,2]
[381500221,1756236707240,-434.89494459,0.000271,2]
[381500222,1756236709306,-160.40754479,0.000271,2]
[381500223,1756236714197,-379.29995167,0.000271,2]
[381500224,1756236720048,-336.00123972,0.000271,2]
[381500225,1756236722733,-199.0,0.000271,2]
[381500226,1756236724335,-205.11236909,0.000271,2]
[381500227,1756236725716,-114.50425695,0.000271,2]
[381500228,1756236725738,-186.14168257,0.00027214,2]
[381500229,1756236730214,-7.26849694,0.00027214,2]
[381500230,1756236730256,318.34211157,0.000271,2]
[381500231,1756236730278,4681.65788843,0.000271,2]
[381500232,1756236745418,5000.0,0.000271,2]
[381500233,1756236751098,153.35211157,0.000271,2]
[381500234,1756236751133,1518.45619791,0.000271,2]
[381500235,1756236753571,1251.46418355,0.000271,7]
[381500236,1756236761686,5000.0,0.000271,2]
[381500237,1756236776698,2230.08961854,0.000271,2]
[381500238,1756236776721,2769.91038146,0.000271,2]
[381500239,1756236792059,5000.0,0.000271,2]
[381500240,1756236807288,2230.09961854,0.000271,2]
[381500241,1756236807312,2769.90038146,0.000271,2]
[381500242,1756236814888,2378.87637703,0.000199,2]
[381500243,1756236815011,2378.87637702,0.00021627,2]
[381500244,1756236815139,2378.87637702,0.00023353,2]